[Event "Titled Tuesday Blitz November 22 Early 2022"]
[White "Goroshkov, Maksym"]
[Black "Storey, Charles H"]
[WhiteFideId "14142716"]
[BlackFideId "406686"]
[WhiteElo "2257"]
[BlackElo "2252"]
[Result "1-0"]
[Round "10"]
[TimeControl "180+1"]
[Date "2022.11.23"]
[WhiteClock "0:01:03"]
[BlackClock "0:00:01"]

1. e4 {[%clk 0:03:00]}  g6 {[%clk 0:02:59]} 2. d4 {[%clk 0:03:00]}  Bg7 {[%clk 0:02:59]} 3. c4 {[%clk 0:03:01]}  c5 {[%clk 0:03:00]} 4. d5 {[%clk 0:03:01]}  d6 {[%clk 0:02:58]} 5. Nc3 {[%clk 0:03:01]}  Nf6 {[%clk 0:02:57]} 6. f4 {[%clk 0:02:59]}  O-O {[%clk 0:02:56]} 7. Bd3 {[%clk 0:02:59]}  e6 {[%clk 0:02:55]} 8. Nf3 {[%clk 0:02:59]}  exd5 {[%clk 0:02:56]} 9. cxd5 {[%clk 0:03:00]}  b5 {[%clk 0:02:52]} 10. O-O {[%clk 0:02:53]}  b4 {[%clk 0:02:46]} 11. Nb1 {[%clk 0:02:49]}  Bg4 {[%clk 0:02:40]} 12. Nbd2 {[%clk 0:02:47]}  Nbd7 {[%clk 0:02:39]} 13. h3 {[%clk 0:02:46]}  Bxf3 {[%clk 0:02:39]} 14. Qxf3 {[%clk 0:02:47]}  Re8 {[%clk 0:02:32]} 15. Rb1 {[%clk 0:02:44]}  a5 {[%clk 0:02:16]} 16. b3 {[%clk 0:02:43]}  a4 {[%clk 0:02:16]} 17. Bb2 {[%clk 0:02:29]}  axb3 {[%clk 0:02:15]} 18. axb3 {[%clk 0:02:26]}  Ra2 {[%clk 0:02:16]} 19. Nc4 {[%clk 0:02:18]}  Nb6 {[%clk 0:02:13]} 20. Nxb6 {[%clk 0:02:11]}  Qxb6 {[%clk 0:02:13]} 21. Kh1 {[%clk 0:02:09]}  Rxb2 {[%clk 0:02:10]} 22. Rxb2 {[%clk 0:02:07]}  Nxd5 {[%clk 0:01:56]} 23. e5 {[%clk 0:02:07]}  Ne7 {[%clk 0:01:31]} 24. Re2 {[%clk 0:01:59]}  d5 {[%clk 0:01:27]} 25. f5 {[%clk 0:01:55]}  c4 {[%clk 0:01:23]} 26. fxg6 {[%clk 0:01:53]}  Rf8 {[%clk 0:01:07]} 27. gxf7+ {[%clk 0:01:52]}  Kh8 {[%clk 0:01:06]} 28. bxc4 {[%clk 0:01:52]}  dxc4 {[%clk 0:01:04]} 29. Bxc4 {[%clk 0:01:53]}  Qc5 {[%clk 0:01:00]} 30. Bb3 {[%clk 0:01:46]}  Bxe5 {[%clk 0:00:58]} 31. Qe4 {[%clk 0:01:41]}  Ng6 {[%clk 0:00:51]} 32. Rc2 {[%clk 0:01:32]}  Bc3 {[%clk 0:00:51]} 33. Qc4 {[%clk 0:01:19]}  Qxc4 {[%clk 0:00:36]} 34. Bxc4 {[%clk 0:01:20]}  Kg7 {[%clk 0:00:35]} 35. Re2 {[%clk 0:01:15]}  Ne5 {[%clk 0:00:29]} 36. Bb3 {[%clk 0:01:15]}  Ra8 {[%clk 0:00:14]} 37. Re4 {[%clk 0:01:11]}  Kf8 {[%clk 0:00:10]} 38. Rh4 {[%clk 0:01:09]}  Kg7 {[%clk 0:00:03]} 39. Rh5 {[%clk 0:01:07]}  Ng6 {[%clk 0:00:02]} 40. Rhf5 {[%clk 0:01:04]}  Nf8 {[%clk 0:00:02]} 41. Rg5+ {[%clk 0:01:04]}  Ng6 {[%clk 0:00:02]} 42. Bd5 {[%clk 0:01:03]}  Ra5 {[%clk 0:00:01]} 43. f8=Q# {[%clk 0:01:03]} 1-0


[Site "https://www.chess.com"]

[Event "Titled Tuesday Blitz November 22 Early 2022"]
[White "Goryachkina, Aleksandra"]
[Black "Salinas Herrera, Pablo"]
[WhiteFideId "4147103"]
[BlackFideId "3407128"]
[WhiteElo "2484"]
[BlackElo "2557"]
[Result "0-1"]
[Round "10"]
[TimeControl "180+1"]
[Date "2022.11.22"]
[WhiteClock "0:00:01"]
[BlackClock "0:00:42"]

1. e4 {[%clk 0:02:59]}  c5 {[%clk 0:02:59]} 2. Nf3 {[%clk 0:02:59]}  e6 {[%clk 0:02:59]} 3. g3 {[%clk 0:02:59]}  Nc6 {[%clk 0:02:58]} 4. Bg2 {[%clk 0:02:58]}  Nf6 {[%clk 0:02:59]} 5. d3 {[%clk 0:02:57]}  d6 {[%clk 0:02:56]} 6. O-O {[%clk 0:02:56]}  Be7 {[%clk 0:02:56]} 7. c3 {[%clk 0:02:48]}  O-O {[%clk 0:02:56]} 8. Re1 {[%clk 0:02:48]}  Bd7 {[%clk 0:02:56]} 9. d4 {[%clk 0:02:47]}  cxd4 {[%clk 0:02:56]} 10. cxd4 {[%clk 0:02:47]}  d5 {[%clk 0:02:56]} 11. e5 {[%clk 0:02:45]}  Ne4 {[%clk 0:02:57]} 12. Nbd2 {[%clk 0:02:39]}  Nxd2 {[%clk 0:02:54]} 13. Bxd2 {[%clk 0:02:39]}  a5 {[%clk 0:02:43]} 14. h4 {[%clk 0:02:34]}  Qb6 {[%clk 0:02:42]} 15. Bc3 {[%clk 0:02:31]}  Rfc8 {[%clk 0:02:40]} 16. Ng5 {[%clk 0:02:20]}  h6 {[%clk 0:02:38]} 17. Nh3 {[%clk 0:02:20]}  Bb4 {[%clk 0:02:26]} 18. Nf4 {[%clk 0:02:07]}  Ne7 {[%clk 0:02:10]} 19. Re3 {[%clk 0:01:44]}  Nf5 {[%clk 0:02:02]} 20. Rf3 {[%clk 0:01:43]}  a4 {[%clk 0:01:57]} 21. a3 {[%clk 0:01:00]}  Bxc3 {[%clk 0:01:54]} 22. bxc3 {[%clk 0:01:00]}  Qb3 {[%clk 0:01:54]} 23. Qd2 {[%clk 0:00:50]}  Rc7 {[%clk 0:01:38]} 24. Nh5 {[%clk 0:00:32]}  Rac8 {[%clk 0:01:38]} 25. Rc1 {[%clk 0:00:30]}  Qxa3 {[%clk 0:01:35]} 26. Rc2 {[%clk 0:00:19]}  Qe7 {[%clk 0:01:16]} 27. Bh3 {[%clk 0:00:18]}  b5 {[%clk 0:01:12]} 28. g4 {[%clk 0:00:14]}  Nxh4 {[%clk 0:01:10]} 29. Rg3 {[%clk 0:00:14]}  b4 {[%clk 0:01:03]} 30. g5 {[%clk 0:00:11]}  hxg5 {[%clk 0:01:02]} 31. Bg2 {[%clk 0:00:07]}  Rxc3 {[%clk 0:00:45]} 32. Rxg5 {[%clk 0:00:03]}  Ng6 {[%clk 0:00:45]} 33. Rxc3 {[%clk 0:00:02]}  bxc3 {[%clk 0:00:45]} 34. Qc1 {[%clk 0:00:02]}  c2 {[%clk 0:00:45]} 35. f4 {[%clk 0:00:02]}  Qb4 {[%clk 0:00:43]} 36. f5 {[%clk 0:00:01]}  Qxd4+ {[%clk 0:00:43]} 37. Kh1 {[%clk 0:00:01]}  Qh4+ {[%clk 0:00:42]} 0-1


[Site "https://www.chess.com"]

[Event "Titled Tuesday Blitz November 22 Early 2022"]
[White "Jobava, Baadur"]
[Black "Paravyan, David"]
[WhiteFideId "13601520"]
[BlackFideId "4194985"]
[WhiteElo "2582"]
[BlackElo "2546"]
[Result "0-1"]
[Round "10"]
[TimeControl "180+1"]
[Date "2022.11.22"]
[WhiteClock "0:00:01"]
[BlackClock "0:00:04"]

1. b3 {[%clk 0:02:59]}  e5 {[%clk 0:02:55]} 2. Bb2 {[%clk 0:03:00]}  Nc6 {[%clk 0:02:54]} 3. Nf3 {[%clk 0:03:01]}  e4 {[%clk 0:02:54]} 4. Nd4 {[%clk 0:03:01]}  Nxd4 {[%clk 0:02:53]} 5. Bxd4 {[%clk 0:03:02]}  Ne7 {[%clk 0:02:52]} 6. e3 {[%clk 0:03:02]}  d5 {[%clk 0:02:51]} 7. Bb2 {[%clk 0:03:03]}  h5 {[%clk 0:02:48]} 8. c4 {[%clk 0:03:00]}  Bg4 {[%clk 0:02:45]} 9. Qc2 {[%clk 0:02:57]}  Qd7 {[%clk 0:02:42]} 10. cxd5 {[%clk 0:02:51]}  O-O-O {[%clk 0:02:30]} 11. Nc3 {[%clk 0:02:33]}  Nxd5 {[%clk 0:02:27]} 12. Nxd5 {[%clk 0:02:24]}  Qxd5 {[%clk 0:02:28]} 13. Bc4 {[%clk 0:02:24]}  Qd7 {[%clk 0:01:49]} 14. Rc1 {[%clk 0:01:55]}  Kb8 {[%clk 0:01:27]} 15. h3 {[%clk 0:01:35]}  Bf5 {[%clk 0:01:24]} 16. Be5 {[%clk 0:01:14]}  Bd6 {[%clk 0:01:07]} 17. Bxd6 {[%clk 0:01:13]}  Qxd6 {[%clk 0:01:08]} 18. Bxf7 {[%clk 0:01:02]}  Rd7 {[%clk 0:00:56]} 19. Bc4 {[%clk 0:01:01]}  Rhd8 {[%clk 0:00:54]} 20. Rd1 {[%clk 0:00:46]}  Qg6 {[%clk 0:00:27]} 21. g3 {[%clk 0:00:45]}  Qf6 {[%clk 0:00:23]} 22. Be2 {[%clk 0:00:43]}  h4 {[%clk 0:00:16]} 23. g4 {[%clk 0:00:37]}  Be6 {[%clk 0:00:11]} 24. O-O {[%clk 0:00:34]}  Qe5 {[%clk 0:00:08]} 25. Qc3 {[%clk 0:00:33]}  Qxc3 {[%clk 0:00:02]} 26. dxc3 {[%clk 0:00:33]}  Rd2 {[%clk 0:00:02]} 27. f4 {[%clk 0:00:15]}  exf3 {[%clk 0:00:02]} 28. Bxf3 {[%clk 0:00:15]}  Kc8 {[%clk 0:00:01]} 29. Rxd2 {[%clk 0:00:14]}  Rxd2 {[%clk 0:00:02]} 30. Rf2 {[%clk 0:00:15]}  Rd3 {[%clk 0:00:03]} 31. Re2 {[%clk 0:00:14]}  Rxc3 {[%clk 0:00:03]} 32. Kf2 {[%clk 0:00:15]}  c6 {[%clk 0:00:03]} 33. Rd2 {[%clk 0:00:15]}  Kc7 {[%clk 0:00:03]} 34. Be4 {[%clk 0:00:15]}  g5 {[%clk 0:00:03]} 35. Kf3 {[%clk 0:00:15]}  a5 {[%clk 0:00:03]} 36. Bf5 {[%clk 0:00:15]}  Bd5+ {[%clk 0:00:04]} 37. Be4 {[%clk 0:00:15]}  Kd6 {[%clk 0:00:04]} 38. Ke2 {[%clk 0:00:14]}  Ke5 {[%clk 0:00:04]} 39. Bxd5 {[%clk 0:00:14]}  cxd5 {[%clk 0:00:05]} 40. Kf3 {[%clk 0:00:13]}  b5 {[%clk 0:00:05]} 41. Ke2 {[%clk 0:00:14]}  Rc1 {[%clk 0:00:04]} 42. Kf2 {[%clk 0:00:10]}  Rh1 {[%clk 0:00:04]} 43. Kg2 {[%clk 0:00:11]}  Ra1 {[%clk 0:00:04]} 44. Kf2 {[%clk 0:00:11]}  Rc1 {[%clk 0:00:03]} 45. Kg2 {[%clk 0:00:06]}  b4 {[%clk 0:00:03]} 46. Kf2 {[%clk 0:00:07]}  Rh1 {[%clk 0:00:03]} 47. Kg2 {[%clk 0:00:07]}  Re1 {[%clk 0:00:04]} 48. Kf2 {[%clk 0:00:07]}  Rc1 {[%clk 0:00:05]} 49. Kg2 {[%clk 0:00:06]}  Rc3 {[%clk 0:00:04]} 50. Kf3 {[%clk 0:00:06]}  Rc6 {[%clk 0:00:03]} 51. Ke2 {[%clk 0:00:05]}  Rc1 {[%clk 0:00:03]} 52. Kf2 {[%clk 0:00:05]}  Rc3 {[%clk 0:00:03]} 53. Kf3 {[%clk 0:00:05]}  a4 {[%clk 0:00:04]} 54. bxa4 {[%clk 0:00:05]}  Ra3 {[%clk 0:00:04]} 55. Ke2 {[%clk 0:00:04]}  Rxa4 {[%clk 0:00:04]} 56. Rb2 {[%clk 0:00:02]}  Ke4 {[%clk 0:00:05]} 57. Kf2 {[%clk 0:00:03]}  Kd3 {[%clk 0:00:04]} 58. Kf3 {[%clk 0:00:02]}  Kc3 {[%clk 0:00:04]} 59. Rf2 {[%clk 0:00:01]}  Ra7 {[%clk 0:00:04]} 0-1


[Site "https://www.chess.com"]

[Event "Titled Tuesday Blitz November 22 Early 2022"]
[White "Jones, Gawain C B"]
[Black "Seo, Jung Min"]
[WhiteFideId "409561"]
[BlackFideId "1734687"]
[WhiteElo "2657"]
[BlackElo "2455"]
[Result "0-1"]
[Round "10"]
[TimeControl "180+1"]
[Date "2022.11.22"]
[WhiteClock "0:00:31"]
[BlackClock "0:01:25"]

1. Nf3 {[%clk 0:03:00]}  Nf6 {[%clk 0:02:59]} 2. g3 {[%clk 0:03:01]}  g6 {[%clk 0:02:59]} 3. b3 {[%clk 0:03:01]}  b6 {[%clk 0:02:59]} 4. Bb2 {[%clk 0:03:01]}  Bg7 {[%clk 0:02:59]} 5. Bg2 {[%clk 0:03:01]}  Bb7 {[%clk 0:03:00]} 6. O-O {[%clk 0:03:01]}  O-O {[%clk 0:03:00]} 7. c4 {[%clk 0:03:02]}  c5 {[%clk 0:03:00]} 8. d4 {[%clk 0:03:02]}  cxd4 {[%clk 0:03:01]} 9. Qxd4 {[%clk 0:02:57]}  d6 {[%clk 0:03:00]} 10. Qh4 {[%clk 0:02:49]}  Nbd7 {[%clk 0:03:00]} 11. Nc3 {[%clk 0:02:49]}  Rc8 {[%clk 0:02:52]} 12. Rad1 {[%clk 0:02:48]}  a6 {[%clk 0:02:52]} 13. Rd2 {[%clk 0:02:43]}  Rc5 {[%clk 0:02:48]} 14. Rfd1 {[%clk 0:02:37]}  Rh5 {[%clk 0:02:46]} 15. Qf4 {[%clk 0:02:26]}  Bh6 {[%clk 0:02:30]} 16. Qd4 {[%clk 0:02:26]}  Bxd2 {[%clk 0:02:30]} 17. Rxd2 {[%clk 0:02:25]}  Rc5 {[%clk 0:02:25]} 18. g4 {[%clk 0:02:18]}  Bxf3 {[%clk 0:02:18]} 19. exf3 {[%clk 0:02:12]}  g5 {[%clk 0:02:02]} 20. Ne4 {[%clk 0:01:57]}  Re5 {[%clk 0:02:00]} 21. Qe3 {[%clk 0:01:51]}  Nxe4 {[%clk 0:01:54]} 22. fxe4 {[%clk 0:01:51]}  f6 {[%clk 0:01:50]} 23. Bxe5 {[%clk 0:01:48]}  Nxe5 {[%clk 0:01:50]} 24. f4 {[%clk 0:01:47]}  gxf4 {[%clk 0:01:49]} 25. Qxf4 {[%clk 0:01:47]}  Qc8 {[%clk 0:01:48]} 26. g5 {[%clk 0:01:40]}  Qc5+ {[%clk 0:01:43]} 27. Kh1 {[%clk 0:01:18]}  Ng6 {[%clk 0:01:42]} 28. Qf5 {[%clk 0:01:14]}  fxg5 {[%clk 0:01:41]} 29. Qe6+ {[%clk 0:01:04]}  Kg7 {[%clk 0:01:40]} 30. Qd5 {[%clk 0:00:54]}  Qe3 {[%clk 0:01:29]} 31. b4 {[%clk 0:00:31]}  Qe1+ {[%clk 0:01:25]} 0-1


[Site "https://www.chess.com"]

[Event "Titled Tuesday Blitz November 22 Early 2022"]
[White "Jumabayev, Rinat"]
[Black "Munkhgal, Gombosuren"]
[WhiteFideId "13702661"]
[BlackFideId "4901266"]
[WhiteElo "2561"]
[BlackElo "2576"]
[Result "0-1"]
[Round "10"]
[TimeControl "180+1"]
[Date "2022.11.22"]
[WhiteClock "0:00:03"]
[BlackClock "0:00:51"]

1. e4 {[%clk 0:03:00]}  e6 {[%clk 0:02:59]} 2. d4 {[%clk 0:03:00]}  d5 {[%clk 0:03:00]} 3. Nd2 {[%clk 0:03:01]}  c5 {[%clk 0:02:59]} 4. exd5 {[%clk 0:03:00]}  exd5 {[%clk 0:02:59]} 5. Ngf3 {[%clk 0:02:53]}  Nc6 {[%clk 0:02:54]} 6. Bb5 {[%clk 0:02:53]}  cxd4 {[%clk 0:02:54]} 7. O-O {[%clk 0:02:52]}  Bd6 {[%clk 0:02:54]} 8. Nxd4 {[%clk 0:02:48]}  Ne7 {[%clk 0:02:54]} 9. h3 {[%clk 0:02:41]}  O-O {[%clk 0:02:54]} 10. N2f3 {[%clk 0:02:41]}  Nxd4 {[%clk 0:02:52]} 11. Nxd4 {[%clk 0:02:40]}  Bc7 {[%clk 0:02:52]} 12. Re1 {[%clk 0:02:30]}  Qd6 {[%clk 0:02:51]} 13. Nf3 {[%clk 0:02:09]}  Ng6 {[%clk 0:02:51]} 14. Bd3 {[%clk 0:01:45]}  Bd7 {[%clk 0:02:24]} 15. Be3 {[%clk 0:01:15]}  Rae8 {[%clk 0:02:23]} 16. Qd2 {[%clk 0:01:11]}  d4 {[%clk 0:02:06]} 17. Bxd4 {[%clk 0:01:01]}  Nh4 {[%clk 0:02:06]} 18. Ne5 {[%clk 0:00:56]}  f6 {[%clk 0:01:49]} 19. Bc4+ {[%clk 0:00:28]}  Kh8 {[%clk 0:01:23]} 20. Nf7+ {[%clk 0:00:04]}  Rxf7 {[%clk 0:01:23]} 21. Rxe8+ {[%clk 0:00:04]}  Bxe8 {[%clk 0:01:24]} 22. f4 {[%clk 0:00:03]}  Rd7 {[%clk 0:01:15]} 23. c3 {[%clk 0:00:04]}  Bb6 {[%clk 0:00:48]} 24. Re1 {[%clk 0:00:04]}  Bg6 {[%clk 0:00:48]} 25. Bb5 {[%clk 0:00:02]}  Bxd4+ {[%clk 0:00:49]} 26. cxd4 {[%clk 0:00:02]}  Qxd4+ {[%clk 0:00:49]} 27. Qxd4 {[%clk 0:00:03]}  Rxd4 {[%clk 0:00:50]} 28. g3 {[%clk 0:00:03]}  Nf3+ {[%clk 0:00:50]} 29. Kf2 {[%clk 0:00:03]}  Nxe1 {[%clk 0:00:51]} 0-1


[Site "https://www.chess.com"]

[Event "Titled Tuesday Blitz November 22 Early 2022"]
[White "Kleiman, Jake"]
[Black "Vakhlamov, Igor L."]
[WhiteFideId "2020041"]
[BlackFideId "24126748"]
[WhiteElo "2593"]
[BlackElo "2401"]
[Result "1-0"]
[Round "10"]
[TimeControl "180+1"]
[Date "2022.11.23"]
[WhiteClock "0:00:25"]
[BlackClock "0:00:14"]

1. e4 {[%clk 0:03:00]}  c5 {[%clk 0:02:59]} 2. c3 {[%clk 0:03:01]}  Nf6 {[%clk 0:02:46]} 3. e5 {[%clk 0:03:00]}  Nd5 {[%clk 0:02:47]} 4. Bc4 {[%clk 0:03:01]}  Nb6 {[%clk 0:02:45]} 5. Bb3 {[%clk 0:03:00]}  Nc6 {[%clk 0:02:45]} 6. Nf3 {[%clk 0:03:00]}  d5 {[%clk 0:02:44]} 7. exd6 {[%clk 0:03:00]}  Qxd6 {[%clk 0:02:44]} 8. O-O {[%clk 0:02:59]}  Be6 {[%clk 0:02:45]} 9. Bxe6 {[%clk 0:02:58]}  Qxe6 {[%clk 0:02:46]} 10. a4 {[%clk 0:02:58]}  Qd7 {[%clk 0:02:42]} 11. a5 {[%clk 0:02:57]}  Nd5 {[%clk 0:02:43]} 12. a6 {[%clk 0:02:56]}  b6 {[%clk 0:02:43]} 13. d4 {[%clk 0:02:57]}  e6 {[%clk 0:02:36]} 14. Re1 {[%clk 0:02:53]}  Be7 {[%clk 0:02:21]} 15. Na3 {[%clk 0:02:29]}  Rd8 {[%clk 0:02:20]} 16. Nb5 {[%clk 0:02:22]}  O-O {[%clk 0:02:17]} 17. Qa4 {[%clk 0:02:10]}  h6 {[%clk 0:02:08]} 18. Ne5 {[%clk 0:01:51]}  Nxe5 {[%clk 0:02:06]} 19. dxe5 {[%clk 0:01:52]}  Ra8 {[%clk 0:01:41]} 20. Be3 {[%clk 0:01:19]}  Nxe3 {[%clk 0:01:33]} 21. Rxe3 {[%clk 0:01:19]}  Rfd8 {[%clk 0:01:33]} 22. Re2 {[%clk 0:01:09]}  Qd3 {[%clk 0:01:30]} 23. Rae1 {[%clk 0:01:06]}  Bg5 {[%clk 0:01:20]} 24. Kf1 {[%clk 0:00:44]}  g6 {[%clk 0:00:31]} 25. g3 {[%clk 0:00:39]}  Qf3 {[%clk 0:00:27]} 26. Qe4 {[%clk 0:00:36]}  Qxe4 {[%clk 0:00:26]} 27. Rxe4 {[%clk 0:00:37]}  Kf8 {[%clk 0:00:22]} 28. h4 {[%clk 0:00:35]}  Be7 {[%clk 0:00:21]} 29. Ke2 {[%clk 0:00:33]}  Ke8 {[%clk 0:00:20]} 30. Nc7+ {[%clk 0:00:33]}  Kd7 {[%clk 0:00:18]} 31. Nxa8 {[%clk 0:00:34]}  Rxa8 {[%clk 0:00:19]} 32. c4 {[%clk 0:00:32]}  Kc6 {[%clk 0:00:18]} 33. Rd1 {[%clk 0:00:32]}  Rc8 {[%clk 0:00:17]} 34. Re3 {[%clk 0:00:30]}  Rc7 {[%clk 0:00:17]} 35. Red3 {[%clk 0:00:30]}  h5 {[%clk 0:00:17]} 36. Kf3 {[%clk 0:00:27]}  b5 {[%clk 0:00:15]} 37. Rd6+ {[%clk 0:00:24]}  Bxd6 {[%clk 0:00:14]} 38. Rxd6# {[%clk 0:00:25]} 1-0


[Site "https://www.chess.com"]

[Event "Titled Tuesday Blitz November 22 Early 2022"]
[White "Koridze, Lile"]
[Black "Gurevich, Dmitry"]
[WhiteFideId "13612514"]
[BlackFideId "2000407"]
[WhiteElo "2050"]
[BlackElo "2506"]
[Result "1-0"]
[Round "10"]
[TimeControl "180+1"]
[Date "2022.11.23"]
[WhiteClock "0:00:08"]
[BlackClock "0:00:01"]

1. d4 {[%clk 0:03:00]}  Nf6 {[%clk 0:02:59]} 2. c4 {[%clk 0:03:00]}  a6 {[%clk 0:02:59]} 3. Nc3 {[%clk 0:03:00]}  c5 {[%clk 0:02:59]} 4. d5 {[%clk 0:02:59]}  b5 {[%clk 0:02:58]} 5. cxb5 {[%clk 0:02:58]}  axb5 {[%clk 0:02:58]} 6. Nxb5 {[%clk 0:02:58]}  Qa5+ {[%clk 0:02:58]} 7. Nc3 {[%clk 0:02:58]}  Bb7 {[%clk 0:02:58]} 8. Bd2 {[%clk 0:02:53]}  Qb6 {[%clk 0:02:57]} 9. e4 {[%clk 0:02:45]}  e6 {[%clk 0:02:55]} 10. Bc4 {[%clk 0:02:39]}  Nxe4 {[%clk 0:02:51]} 11. Nxe4 {[%clk 0:02:37]}  exd5 {[%clk 0:02:50]} 12. Nc3 {[%clk 0:02:00]}  dxc4 {[%clk 0:02:47]} 13. Nge2 {[%clk 0:01:58]}  d5 {[%clk 0:02:17]} 14. O-O {[%clk 0:01:56]}  d4 {[%clk 0:02:16]} 15. Nf4 {[%clk 0:01:54]}  dxc3 {[%clk 0:01:51]} 16. Re1+ {[%clk 0:01:52]}  Be7 {[%clk 0:01:49]} 17. Bxc3 {[%clk 0:01:51]}  O-O {[%clk 0:01:37]} 18. Rxe7 {[%clk 0:01:51]}  Nc6 {[%clk 0:01:27]} 19. Qg4 {[%clk 0:01:41]}  Nd4 {[%clk 0:01:20]} 20. Ne2 {[%clk 0:01:22]}  Rad8 {[%clk 0:01:04]} 21. Re1 {[%clk 0:01:11]}  Qc6 {[%clk 0:00:52]} 22. f3 {[%clk 0:01:06]}  Bc8 {[%clk 0:00:31]} 23. Qg5 {[%clk 0:00:52]}  h6 {[%clk 0:00:28]} 24. Qe5 {[%clk 0:00:40]}  Qd6 {[%clk 0:00:22]} 25. Nf4 {[%clk 0:00:26]}  Qxe5 {[%clk 0:00:20]} 26. R7xe5 {[%clk 0:00:20]}  Nb5 {[%clk 0:00:18]} 27. Rxc5 {[%clk 0:00:19]}  Nxc3 {[%clk 0:00:19]} 28. bxc3 {[%clk 0:00:20]}  Rd2 {[%clk 0:00:17]} 29. Rxc4 {[%clk 0:00:19]}  Rxa2 {[%clk 0:00:17]} 30. Rc7 {[%clk 0:00:19]}  Ba6 {[%clk 0:00:13]} 31. c4 {[%clk 0:00:15]}  Rc2 {[%clk 0:00:11]} 32. c5 {[%clk 0:00:15]}  Rd8 {[%clk 0:00:09]} 33. Rc6 {[%clk 0:00:10]}  Bb7 {[%clk 0:00:08]} 34. Rb6 {[%clk 0:00:10]}  Ba8 {[%clk 0:00:08]} 35. Rb5 {[%clk 0:00:08]}  g5 {[%clk 0:00:07]} 36. Ne2 {[%clk 0:00:05]}  Rdd2 {[%clk 0:00:07]} 37. Rb8+ {[%clk 0:00:04]}  Kg7 {[%clk 0:00:05]} 38. Rxa8 {[%clk 0:00:05]}  Rxe2 {[%clk 0:00:05]} 39. Rxe2 {[%clk 0:00:06]}  Rxe2 {[%clk 0:00:05]} 40. c6 {[%clk 0:00:06]}  Rc2 {[%clk 0:00:06]} 41. Ra6 {[%clk 0:00:07]}  h5 {[%clk 0:00:05]} 42. g3 {[%clk 0:00:06]}  h4 {[%clk 0:00:05]} 43. gxh4 {[%clk 0:00:06]}  gxh4 {[%clk 0:00:05]} 44. h3 {[%clk 0:00:07]}  f6 {[%clk 0:00:05]} 45. Kf1 {[%clk 0:00:07]}  Kg6 {[%clk 0:00:05]} 46. Ke1 {[%clk 0:00:06]}  Rc4 {[%clk 0:00:04]} 47. Ke2 {[%clk 0:00:07]}  Kf5 {[%clk 0:00:04]} 48. Kd3 {[%clk 0:00:07]}  Rc5 {[%clk 0:00:04]} 49. Kd4 {[%clk 0:00:07]}  Rc1 {[%clk 0:00:04]} 50. Kd5 {[%clk 0:00:07]}  Kf4 {[%clk 0:00:04]} 51. Kd6 {[%clk 0:00:06]}  Kg3 {[%clk 0:00:02]} 52. c7 {[%clk 0:00:07]}  Rxc7 {[%clk 0:00:01]} 53. Kxc7 {[%clk 0:00:07]}  Kxh3 {[%clk 0:00:01]} 54. Rxf6 {[%clk 0:00:08]}  Kg3 {[%clk 0:00:01]} 55. Rh6 {[%clk 0:00:08]} 1-0


[Site "https://www.chess.com"]

[Event "Titled Tuesday Blitz November 22 Early 2022"]
[White "Krzywda, Andrzej"]
[Black "Janaszak, Dawid"]
[WhiteFideId "1114565"]
[BlackFideId "1119206"]
[WhiteElo "2149"]
[BlackElo "2226"]
[Result "1-0"]
[Round "10"]
[TimeControl "180+1"]
[Date "2022.11.23"]
[WhiteClock "0:00:29"]
[BlackClock "0:00:12"]

1. d4 {[%clk 0:02:54]}  Nf6 {[%clk 0:02:57]} 2. c4 {[%clk 0:02:54]}  g6 {[%clk 0:02:57]} 3. Nc3 {[%clk 0:02:54]}  Bg7 {[%clk 0:02:57]} 4. e4 {[%clk 0:02:54]}  d6 {[%clk 0:02:57]} 5. Nf3 {[%clk 0:02:54]}  O-O {[%clk 0:02:57]} 6. Be2 {[%clk 0:02:55]}  Nbd7 {[%clk 0:02:54]} 7. O-O {[%clk 0:02:55]}  e5 {[%clk 0:02:54]} 8. Be3 {[%clk 0:02:54]}  Qe7 {[%clk 0:02:52]} 9. Re1 {[%clk 0:02:40]}  Ng4 {[%clk 0:02:50]} 10. Bg5 {[%clk 0:02:38]}  f6 {[%clk 0:02:50]} 11. Bc1 {[%clk 0:02:36]}  c6 {[%clk 0:02:44]} 12. Bf1 {[%clk 0:02:35]}  f5 {[%clk 0:02:31]} 13. Bg5 {[%clk 0:02:19]}  Ngf6 {[%clk 0:02:30]} 14. exf5 {[%clk 0:02:18]}  gxf5 {[%clk 0:02:31]} 15. Nh4 {[%clk 0:02:17]}  Nb8 {[%clk 0:01:48]} 16. Qf3 {[%clk 0:01:49]}  Qc7 {[%clk 0:01:21]} 17. dxe5 {[%clk 0:01:43]}  dxe5 {[%clk 0:01:20]} 18. Nxf5 {[%clk 0:01:43]}  Bxf5 {[%clk 0:01:13]} 19. Qxf5 {[%clk 0:01:43]}  Nbd7 {[%clk 0:01:13]} 20. Rad1 {[%clk 0:01:36]}  Rae8 {[%clk 0:01:11]} 21. Bd3 {[%clk 0:01:31]}  e4 {[%clk 0:01:10]} 22. Bc2 {[%clk 0:01:27]}  Nd5 {[%clk 0:01:04]} 23. Nxd5 {[%clk 0:01:23]}  cxd5 {[%clk 0:00:53]} 24. Qxd5+ {[%clk 0:01:23]}  Rf7 {[%clk 0:00:54]} 25. Rxe4 {[%clk 0:01:19]}  Rxe4 {[%clk 0:00:44]} 26. Qxe4 {[%clk 0:01:17]}  Nf8 {[%clk 0:00:44]} 27. c5 {[%clk 0:01:08]}  Qxc5 {[%clk 0:00:31]} 28. Bb3 {[%clk 0:01:06]}  Qxg5 {[%clk 0:00:31]} 29. h4 {[%clk 0:01:01]}  Qf6 {[%clk 0:00:30]} 30. Rd2 {[%clk 0:00:54]}  Bh6 {[%clk 0:00:29]} 31. Re2 {[%clk 0:00:52]}  Kg7 {[%clk 0:00:26]} 32. Bxf7 {[%clk 0:00:51]}  Qxf7 {[%clk 0:00:26]} 33. b3 {[%clk 0:00:48]}  Bf4 {[%clk 0:00:24]} 34. g3 {[%clk 0:00:46]}  Bd6 {[%clk 0:00:20]} 35. Rd2 {[%clk 0:00:45]}  Qf6 {[%clk 0:00:16]} 36. Qxb7+ {[%clk 0:00:41]}  Kg8 {[%clk 0:00:15]} 37. Qd5+ {[%clk 0:00:39]}  Ne6 {[%clk 0:00:11]} 38. Qxd6 {[%clk 0:00:37]}  Kg7 {[%clk 0:00:11]} 39. Re2 {[%clk 0:00:32]}  Qa1+ {[%clk 0:00:12]} 40. Kh2 {[%clk 0:00:32]}  Nd4 {[%clk 0:00:12]} 41. Re7+ {[%clk 0:00:29]} 1-0


[Site "https://www.chess.com"]

[Event "Titled Tuesday Blitz November 22 Early 2022"]
[White "Le, Tuan Minh"]
[Black "Tang, Andrew"]
[WhiteFideId "12401153"]
[BlackFideId "2059630"]
[WhiteElo "2530"]
[BlackElo "2581"]
[Result "1-0"]
[Round "10"]
[TimeControl "180+1"]
[Date "2022.11.22"]
[WhiteClock "0:00:23"]
[BlackClock "0:00:02"]

1. d4 {[%clk 0:03:00]}  d5 {[%clk 0:02:53]} 2. Nf3 {[%clk 0:03:01]}  Nf6 {[%clk 0:02:50]} 3. Bf4 {[%clk 0:03:01]}  Bf5 {[%clk 0:02:39]} 4. c4 {[%clk 0:02:58]}  e6 {[%clk 0:02:39]} 5. Nc3 {[%clk 0:02:58]}  Bb4 {[%clk 0:01:54]} 6. e3 {[%clk 0:02:57]}  Nc6 {[%clk 0:01:51]} 7. Bg5 {[%clk 0:02:46]}  h6 {[%clk 0:01:47]} 8. Bxf6 {[%clk 0:02:46]}  Qxf6 {[%clk 0:01:46]} 9. Rc1 {[%clk 0:02:46]}  Rd8 {[%clk 0:01:29]} 10. Qb3 {[%clk 0:02:40]}  O-O {[%clk 0:01:04]} 11. Be2 {[%clk 0:02:38]}  dxc4 {[%clk 0:01:00]} 12. Qxc4 {[%clk 0:02:31]}  Ba5 {[%clk 0:00:47]} 13. O-O {[%clk 0:02:26]}  e5 {[%clk 0:00:31]} 14. d5 {[%clk 0:02:24]}  Ne7 {[%clk 0:00:32]} 15. Rfd1 {[%clk 0:02:18]}  a6 {[%clk 0:00:29]} 16. Ne4 {[%clk 0:01:53]}  Qb6 {[%clk 0:00:20]} 17. Nc5 {[%clk 0:01:29]}  Qxb2 {[%clk 0:00:05]} 18. e4 {[%clk 0:01:30]}  Bc8 {[%clk 0:00:01]} 19. Nb3 {[%clk 0:00:22]}  Bb6 {[%clk 0:00:01]} 20. a4 {[%clk 0:00:23]}  Qa3 {[%clk 0:00:01]} 21. a5 {[%clk 0:00:23]}  Bxa5 {[%clk 0:00:02]} 22. Ra1 {[%clk 0:00:23]} 1-0


[Site "https://www.chess.com"]